bitfinex/quotes_SOLUSD_20260223
["timestamp","ask_amount","ask_price","bid_price","bid_amount"]
[1771875583101,5.52868874,78.22,78.196,12.78837792]
[1771875583513,5.52868874,78.23,78.2,5.52868874]
[1771875584404,5.52868874,78.22,78.196,12.78837792]
[1771875584696,0.28432314,78.265,78.196,44.75932272]
[1771875585017,5.52868874,78.22,78.196,12.78837792]
[1771875587214,5.52868874,78.22,78.196,15.03945377]
[1771875588512,5.52868874,78.24,78.18,0.1]
[1771875588513,5.52868874,78.21,78.18,0.1]
[1771875588709,5.52868874,78.24,78.181,12.79083153]
[1771875588710,0.28432314,78.238,78.181,12.79083153]
[1771875588920,5.52868874,78.21,78.182,2.25107585]
[1771875589321,5.52868874,78.21,78.184,2.25107585]
[1771875589922,12.78452703,78.22,78.184,2.25107585]
[1771875590123,5.52868874,78.21,78.184,2.25107585]
[1771875591201,5.52868874,78.21,78.185,12.79017714]
[1771875591399,5.52868874,78.2,78.181,12.79083153]
[1771875592300,44.75139173,78.21,78.18,0.1]
[1771875592621,5.52868874,78.19,78.18,0.1]
[1771875592823,5.52868874,78.2,78.18,0.1]
[1771875593623,5.52868874,78.19,78.18,0.1]
[1771875593999,51.11167901,78.26,78.181,2.25107585]
[1771875594326,5.52868874,78.21,78.181,2.25107585]
[1771875594929,3.69383402,78.249,78.175,15.33252251]
[1771875594930,5.52868874,78.19,78.175,15.33252251]
[1771875595147,5.52868874,78.2,78.045,8.22075921]
[1771875595148,0.28432314,78.196,78.124,12.80016384]
[1771875595300,13.07646364,78.173,78.125,2.25107585]
[1771875595503,13.07646364,78.173,78.12,5.52868874]
[1771875595504,12.7921405,78.173,78.12,5.52868874]
[1771875595703,12.7921405,78.173,78.061,6.66206164]
[1771875595704,6.682682,78.175,78.141,2.25107585]
[1771875595924,5.52868874,78.15,78.101,2.25107585]
[1771875596234,5.52868874,78.14,78.101,2.25107585]
[1771875596522,6.682682,78.175,78.101,2.25107585]
[1771875596523,6.682682,78.175,78.12,5.52868874]
[1771875596703,6.682682,78.175,78.151,2.25107585]
[1771875597025,12.78603917,78.211,78.162,2.25107585]
[1771875597331,12.78603917,78.211,78.138,3.69383402]
[1771875597332,12.35025308,78.22,78.182,12.79066792]
[1771875597628,12.35025308,78.22,78.183,2.25107585]
[1771875597822,12.35025308,78.22,78.182,12.79066792]
[1771875597823,12.35025308,78.25,78.167,2.25107585]
[1771875598127,12.35025308,78.22,78.181,2.25107585]
[1771875598425,12.35025308,78.22,78.18,12.35025308]
[1771875598426,3.69383402,78.239,78.16,2.25107585]
[1771875598630,12.35025308,78.21,78.171,2.25107585]
[1771875599315,12.35025308,78.21,78.172,12.79230414]
[1771875599514,12.78525898,78.216,78.173,2.25107585]
[1771875599515,12.35025308,78.2,78.173,2.25107585]
[1771875599715,12.35025308,78.21,78.173,2.25107585]
[1771875599916,12.35025308,78.22,78.181,2.25107585]
[1771875600229,12.35025308,78.24,78.201,2.25107585]
[1771875600426,51.08819302,78.296,78.2,12.35025308]
[1771875600427,51.07739099,78.313,78.221,2.25107585]
[1771875600633,51.07739099,78.313,78.2,12.35025308]
[1771875600634,12.35025308,78.28,78.24,14.60132893]
[1771875600847,6.68031738,78.272,78.241,2.25107585]
[1771875601006,12.35025308,78.25,78.206,2.25107585]
[1771875601206,12.35025308,78.26,78.23,12.35025308]
[1771875601406,12.35025308,78.26,78.22,2.25107585]
[1771875601728,31.93214573,78.292,78.231,2.25107585]
[1771875601912,12.35025308,78.26,78.219,2.25107585]
[1771875602111,12.35025308,78.23,78.195,2.25107585]
[1771875602320,12.35025308,78.22,78.195,2.25107585]
[1771875602536,12.35025308,78.23,78.195,2.25107585]
[1771875602723,12.35025308,78.22,78.194,12.78870501]
[1771875602926,12.35025308,78.22,78.18,12.35025308]
[1771875602927,12.35025308,78.2,78.176,2.25107585]
[1771875603606,14.2733519,78.291,78.191,2.25107585]
[1771875603607,12.35025308,78.24,78.191,2.25107585]
[1771875603833,12.35025308,78.24,78.201,2.25107585]
[1771875604209,12.35025308,78.24,78.21,12.35025308]
[1771875604417,12.35025308,78.24,78.23,0.2]
[1771875605531,12.15025308,78.24,78.23,0.2]
[1771875606032,12.35025308,78.24,78.23,0.2]
[1771875606335,12.15025308,78.24,78.23,0.2]
[1771875606536,12.35025308,78.26,78.23,0.2]
[1771875606752,12.35025308,78.25,78.23,12.98277296]
[1771875607040,44.71243516,78.278,78.23,15.23384881]
[1771875607216,12.35025308,78.27,78.231,2.25107585]
[1771875608031,12.77645044,78.269,78.232,12.78249309]
[1771875608353,12.77645044,78.269,78.233,2.25107585]
[1771875608642,12.35025308,78.28,78.241,2.25107585]
[1771875608823,12.77269708,78.292,78.25,12.35025308]
[1771875609018,51.05915059,78.341,78.232,44.73872583]
[1771875609019,12.76930987,78.313,78.27,12.35025308]
[1771875609224,12.35025308,78.31,78.271,2.25107585]
[1771875609932,51.03891498,78.372,78.29,12.35025308]
[1771875609933,31.91308545,78.338,78.29,12.35025308]
[1771875610128,12.55025308,78.33,78.291,2.25107585]
[1771875610436,0.2,78.33,78.301,2.25107585]
[1771875610640,12.55025308,78.33,78.301,2.25107585]
[1771875610937,0.2,78.33,78.301,2.25107585]
[1771875612234,0.2,78.33,78.303,2.25107585]
[1771875612919,12.76666368,78.329,78.303,2.25107585]
[1771875613115,12.55025308,78.33,78.302,44.69873055]
[1771875613116,0.2,78.33,78.302,44.69873055]
[1771875613424,12.55025308,78.33,78.302,12.77106587]
[1771875614820,12.35025308,78.32,78.292,12.77254874]
[1771875615024,44.68332289,78.329,78.248,51.11891786]
[1771875615025,12.35025308,78.3,78.275,12.77547109]
[1771875615225,12.35025308,78.3,78.275,15.02654694]
[1771875615440,0.28432314,78.328,78.275,15.02654694]
[1771875615642,0.28432314,78.328,78.281,2.25107585]
[1771875615851,12.35025308,78.32,78.281,2.25107585]
[1771875616051,12.35025308,78.31,78.281,2.25107585]
[1771875616927,12.76992427,78.309,78.281,15.02542561]
[1771875617132,12.35025308,78.31,78.281,15.02542561]
[1771875617956,12.35025308,78.31,78.282,2.25107585]
[1771875618850,12.35025308,78.31,78.281,12.77434976]
[1771875618851,12.35025308,78.3,78.266,31.94227326]
[1771875619146,12.35025308,78.29,78.267,15.02785278]
[1771875619730,12.35025308,78.32,78.281,2.25107585]
[1771875620540,12.35025308,78.3,78.27,12.35025308]
[1771875620733,12.35025308,78.3,78.271,2.25107585]
[1771875620927,31.91691902,78.329,78.244,2.25107585]
[1771875620928,12.35025308,78.28,78.244,2.25107585]
[1771875621158,12.35025308,78.27,78.245,12.78036935]
[1771875621371,31.93227289,78.291,78.245,12.78036935]
[1771875621532,12.35025308,78.3,78.261,2.25107585]
[1771875621729,12.35025308,78.29,78.252,2.25107585]
[1771875622237,12.35025308,78.29,78.25,12.35025308]
[1771875622238,12.35025308,78.29,78.261,2.25107585]
[1771875622451,12.35025308,78.3,78.261,2.25107585]
[1771875622758,12.35025308,78.29,78.261,2.25107585]
[1771875623336,25.1218051,78.3,78.263,2.25107585]
[1771875623758,12.35025308,78.3,78.263,2.25107585]
[1771875626050,12.77056614,78.306,78.265,2.25107585]
[1771875626353,12.35025308,78.3,78.264,44.72043339]
[1771875626550,12.35025308,78.3,78.265,2.25107585]
[1771875626852,13.05196482,78.323,78.271,2.25107585]
[1771875627034,12.35025308,78.31,78.271,2.25107585]
[1771875628356,12.35025308,78.3,78.273,2.25107585]
[1771875629147,12.35025308,78.3,78.272,12.77596075]
[1771875629352,12.35025308,78.29,78.272,12.77596075]
[1771875631435,12.35025308,78.29,78.264,44.72043339]
[1771875631636,0.2,78.33,78.25,12.35025308]
[1771875631637,12.35025308,78.28,78.255,12.77873618]
[1771875631832,12.35025308,78.29,78.255,46.97665248]
[1771875632036,12.35025308,78.29,78.256,2.25107585]
[1771875632240,12.35025308,78.3,78.261,2.25107585]
[1771875632637,44.68788702,78.321,78.261,2.25107585]
[1771875632638,12.35025308,78.29,78.261,2.25107585]
[1771875633036,12.35025308,78.27,78.247,12.78004268]
[1771875633659,12.35025308,78.26,78.247,12.78004268]
[1771875634547,12.35025308,78.26,78.208,54.83903353]
[1771875634548,12.35025308,78.26,78.201,2.25107585]
[1771875634745,12.35025308,78.23,78.201,2.25107585]
[1771875635656,12.35025308,78.23,78.204,2.25107585]
[1771875635862,3.69383402,78.269,78.203,12.78723322]
[1771875635863,12.35025308,78.25,78.211,2.25107585]
[1771875637154,3.69383402,78.285,78.231,2.25107585]
[1771875637155,12.35025308,78.27,78.231,2.25107585]
[1771875637545,12.35025308,78.26,78.231,2.25107585]
[1771875637744,12.35025308,78.26,78.232,12.78249309]
[1771875638051,12.35025308,78.26,78.233,2.25107585]
[1771875638456,12.77669681,78.268,78.233,2.25107585]
[1771875638649,12.35025308,78.27,78.233,2.25107585]
[1771875638849,12.35025308,78.26,78.233,2.25107585]
[1771875640359,12.35025308,78.26,78.234,12.78216632]
[1771875641163,12.35025308,78.26,78.234,15.03324217]
[1771875641562,12.35025308,78.26,78.235,2.25107585]
[1771875642769,12.35025308,78.26,78.237,2.25107585]
[1771875643451,12.77621694,78.271,78.237,2.25107585]
[1771875643771,2.47215037,96.977,78.236,44.73643846]
[1771875643772,12.35025308,78.28,78.241,2.25107585]
[1771875643964,63.83450656,78.328,78.261,2.25107585]
[1771875644172,12.35025308,78.29,78.261,2.25107585]
[1771875644357,12.35025308,78.29,78.242,0.28432314]
[1771875644358,12.35025308,78.31,78.27,12.35025308]
[1771875644557,25.1216745,78.3,78.271,12.77612397]
[1771875645272,12.35025308,78.3,78.271,44.71643391]
[1771875645566,12.35025308,78.29,78.266,12.77685603]
[1771875645768,25.12170555,78.3,78.266,12.77685603]
[1771875645943,25.12170555,78.3,78.27,12.35025308]
[1771875645944,25.12165371,78.3,78.27,12.35025308]
[1771875646572,25.12165371,78.3,78.261,12.77775648]
[1771875646972,25.12165371,78.3,78.262,2.25107585]
[1771875647171,0.28432314,78.318,78.28,14.60132893]
[1771875647475,12.35025308,78.31,78.271,2.25107585]
[1771875647664,12.35025308,78.28,78.243,2.25107585]
[1771875647968,12.35025308,78.29,78.251,2.25107585]
[1771875648849,12.77318652,78.289,78.253,2.25107585]
[1771875649171,12.77318652,78.289,78.218,3.69383402]
[1771875649172,44.70615283,78.289,78.25,14.60132893]
[1771875649351,12.77318652,78.289,78.251,2.25107585]
[1771875649874,12.77318652,78.289,78.261,2.25107585]
[1771875650662,12.77318652,78.289,78.251,2.25107585]
[1771875650985,0.28432314,78.312,78.252,12.77922609]
[1771875651184,12.35025308,78.29,78.253,2.25107585]
[1771875651781,12.35025308,78.3,78.261,2.25107585]
[1771875652874,12.35025308,78.3,78.27,12.35025308]
[1771875653266,12.35025308,78.3,78.271,12.77612397]
[1771875653471,12.35025308,78.31,78.272,2.25107585]
[1771875653782,12.35025308,78.31,78.271,12.77612397]
[1771875653783,0.2,78.37,78.29,12.35025308]
[1771875653977,12.76541179,78.337,78.301,2.25107585]
[1771875654167,12.35025308,78.32,78.281,2.25107585]
[1771875654491,12.35025308,78.32,78.29,12.35025308]
[1771875654858,12.35025308,78.32,78.288,2.25107585]
[1771875655462,12.76829377,78.319,78.29,12.35025308]
[1771875655867,12.76682667,78.328,78.29,12.35025308]
[1771875656187,12.76682667,78.328,78.291,2.25107585]
[1771875656672,12.76682667,78.328,78.301,2.25107585]
[1771875656865,0.2,78.33,78.301,2.25107585]
[1771875657263,57.23304324,78.33,78.301,2.25107585]
[1771875657467,57.23304324,78.33,78.293,2.25107585]
[1771875658077,0.14216157,78.329,78.293,2.25107585]
[1771875658868,0.14216157,78.329,78.292,12.77258233]
[1771875658869,12.35025308,78.32,78.292,12.77258233]
[1771875659390,0.28432314,78.327,78.292,12.77258233]
[1771875659769,12.3214023,78.32,78.292,12.77258233]
[1771875659970,0.28432314,78.327,78.283,12.77406178]
[1771875659971,12.3214023,78.31,78.283,12.77406178]
[1771875660684,0.28432314,78.309,78.284,2.25107585]
[1771875661966,0.28432314,78.326,78.291,2.25107585]
[1771875662188,12.3214023,78.32,78.291,2.25107585]
[1771875662376,0.28432314,78.319,78.291,2.25107585]
[1771875663293,44.68446384,78.327,78.291,2.25107585]
[1771875663490,44.68446384,78.327,78.246,51.12054341]
[1771875663491,12.3214023,78.31,78.283,2.25107585]
[1771875664067,12.76698967,78.327,78.291,2.25107585]
[1771875664271,12.96656837,78.33,78.301,2.25107585]
[1771875665393,0.28432314,78.329,78.301,2.25107585]
[1771875666390,0.28432314,78.329,78.303,2.25107585]
[1771875666566,12.76682667,78.328,78.303,2.25107585]
[1771875668991,0.2,78.33,78.305,2.25107585]
[1771875669170,0.2,78.33,78.321,2.25107585]
[1771875669375,12.76177592,78.359,78.321,2.25107585]
[1771875669902,12.5214023,78.37,78.331,2.25107585]
[1771875670074,12.5214023,78.37,78.304,99.47438162]
[1771875670075,12.7601475,78.369,78.341,2.25107585]
[1771875670280,12.7601475,78.369,78.333,2.25107585]
[1771875670481,12.7601475,78.369,78.334,15.01692465]
[1771875670881,12.7601475,78.369,78.335,2.25107585]
[1771875672277,0.28432314,78.369,78.337,2.25107585]
[1771875672589,13.04447064,78.369,78.336,12.76552287]
[1771875672791,12.3214023,78.36,78.333,2.25107585]
[1771875673001,13.04447064,78.369,78.333,2.25107585]
[1771875673205,44.9448394,78.369,78.334,12.7658488]
[1771875673397,13.04447064,78.369,78.335,2.25107585]
[1771875673895,13.04447064,78.369,78.334,44.6804708]
[1771875673896,12.3214023,78.36,78.334,12.7658488]
[1771875674096,12.3214023,78.36,78.334,15.01692465]
[1771875674298,13.04447064,78.369,78.335,2.25107585]
[1771875674999,12.5214023,78.37,78.335,2.25107585]
[1771875675000,0.2,78.37,78.335,2.25107585]
[1771875675207,13.04447064,78.369,78.335,2.25107585]
[1771875675386,0.2,78.37,78.341,2.25107585]
[1771875675901,0.2,78.37,78.334,12.7658488]
[1771875675902,0.2,78.37,78.351,2.25107585]
[1771875676104,0.2,78.37,78.35,12.3214023]
[1771875676105,0.2,78.38,78.361,2.25107585]
[1771875676283,0.2,78.38,78.363,2.25107585]
[1771875677584,0.28432314,78.399,78.363,2.25107585]
[1771875677786,12.3214023,78.4,78.363,2.25107585]
[1771875678089,13.03958787,78.399,78.363,2.25107585]
[1771875678608,12.3214023,78.4,78.371,2.25107585]
[1771875679104,12.3214023,78.41,78.371,2.25107585]
[1771875679324,12.3214023,78.42,78.391,2.25107585]
[1771875679514,12.3214023,78.41,78.364,12.76096166]
[1771875679699,12.3214023,78.39,78.365,2.25107585]
[1771875679889,12.3214023,78.39,78.365,1.55125767]
[1771875680090,0.38383732,78.396,78.365,1.55125767]
[1771875680810,12.3214023,78.4,78.37,12.3214023]
[1771875681307,12.3214023,78.41,78.37,12.3214023]
[1771875681508,12.3214023,78.41,78.366,44.66222596]
[1771875681509,0.37695514,78.411,78.38,12.3214023]
[1771875681891,0.37695514,78.409,78.38,14.37562732]
[1771875682693,0.37471946,78.399,78.369,2.05422502]
[1771875682896,12.3214023,78.38,78.351,2.05422502]
[1771875683122,12.69612176,78.38,78.351,2.05422502]
[1771875683715,0.37471946,78.38,78.351,2.05422502]
[1771875684016,13.127866,78.399,78.361,2.05422502]
[1771875684203,13.12428518,78.407,78.371,2.05422502]
[1771875684512,12.3214023,78.4,78.371,2.05422502]
[1771875685218,12.3214023,78.4,78.37,12.3214023]
[1771875685219,12.68952038,78.39,78.361,2.05422502]
[1771875685437,0.36811808,78.389,78.361,2.05422502]
[1771875686512,0.36811808,78.389,78.361,14.81567523]
[1771875686831,0.36811808,78.389,78.356,2.05422502]
[1771875686832,12.3214023,78.38,78.356,2.05422502]
[1771875687398,12.75705465,78.388,78.356,2.05422502]
[1771875687599,13.12090069,78.388,78.356,2.05422502]
[1771875687795,12.75500704,78.401,78.361,2.05422502]
[1771875688017,12.3214023,78.39,78.361,2.05422502]
[1771875688197,12.3214023,78.38,78.355,12.76226533]
[1771875688517,0.28432314,78.389,78.358,2.05422502]
[1771875689299,0.2,78.38,78.358,2.05422502]
[1771875689691,0.2,78.38,78.361,2.05422502]
[1771875690095,0.2,78.37,78.361,2.05422502]
[1771875690624,0.2,78.37,78.363,2.05422502]
[1771875690927,0.2,78.38,78.363,2.05422502]
[1771875691097,0.2,78.38,78.362,12.76128735]
[1771875691098,0.2,78.38,78.348,31.90856311]
[1771875691299,12.7585195,78.379,78.349,12.76340476]
[1771875691498,12.5214023,78.38,78.349,12.76340476]
[1771875691499,12.5214023,78.38,78.35,12.3214023]
[1771875691799,0.2,78.38,78.36,12.3214023]
[1771875692003,0.2,78.38,78.35,12.3214023]
[1771875692193,0.55573588,78.397,78.349,44.67191667]
[1771875692194,12.3214023,78.4,78.36,12.3214023]
[1771875692398,0.55387767,78.404,78.37,12.3214023]
[1771875692598,12.75392051,78.408,78.371,12.75982187]
[1771875692796,0.55387767,78.407,78.35,0.28432314]
[1771875692999,12.3214023,78.39,78.351,2.05422502]
[1771875693196,12.3214023,78.39,78.361,2.05422502]
[1771875694729,12.3214023,78.39,78.339,0.28432314]
[1771875694730,12.3214023,78.39,78.362,14.81551237]
[1771875695102,12.3214023,78.39,78.362,2.05422502]
[1771875695103,0.83451966,78.389,78.362,2.05422502]
[1771875696727,12.75705465,78.388,78.362,2.05422502]
[1771875697222,0.2,78.38,78.362,14.81550743]
[1771875697415,0.2,78.38,78.363,2.05422502]
[1771875697926,0.2,78.37,78.363,2.05422502]
[1771875698309,0.2,78.38,78.363,2.05422502]
[1771875700329,0.2,78.38,78.36,12.3214023]
[1771875700330,0.2,78.38,78.364,2.05422502]
[1771875701626,0.2,78.38,78.365,12.76079882]
[1771875701855,0.2,78.38,78.365,14.81502384]
[1771875702024,0.2,78.38,78.365,2.05422502]
[1771875705329,12.7585195,78.379,78.359,2.05422502]
[1771875706909,0.2,78.38,78.361,2.05422502]
[1771875707106,12.75786817,78.384,78.361,2.05422502]
[1771875708514,0.52526249,78.412,78.371,1.99281367]
[1771875708720,5.51035256,78.4,78.364,1.99281367]
[1771875708920,0.52526249,78.389,78.356,1.99281367]
[1771875709127,5.51035256,78.38,78.357,1.99281367]
[1771875709357,0.52526249,78.381,78.357,1.99281367]
[1771875709715,0.52375447,78.395,78.361,1.99281367]
[1771875710230,0.52375447,78.402,78.371,1.99281367]
[1771875710736,0.52375447,78.402,78.373,1.99281367]
[1771875711333,12.75493935,78.401,78.373,1.99281367]
[1771875712614,0.52375447,78.402,78.373,1.99281367]
[1771875712815,0.52375447,78.402,78.375,1.99281367]
[1771875713020,13.27861379,78.402,78.375,1.99281367]
[1771875714133,12.29376098,78.4,78.375,1.99281367]
[1771875716335,12.16620882,78.4,78.377,1.99281367]
[1771875716938,166.9710683,78.678,78.376,12.75900785]
[1771875716939,0.51362974,78.422,78.391,1.99281367]
[1771875717141,12.29376098,78.43,78.391,1.99281367]
[1771875717346,0.51226656,78.428,78.391,1.99281367]
[1771875717632,0.51226656,78.428,78.401,1.99281367]
[1771875718015,0.7965897,78.434,78.401,1.99281367]
[1771875718227,0.28432314,78.433,78.401,1.99281367]
[1771875718442,12.89189701,78.433,78.402,12.75477666]
[1771875718646,12.89189701,78.433,78.403,1.99281367]
[1771875718848,0.14216157,78.432,78.403,1.99281367]
[1771875719542,0.50958419,78.439,78.411,1.99281367]
[1771875720944,25.03335791,78.44,78.411,1.99281367]
[1771875720945,0.50824992,78.437,78.411,14.74610127]
[1771875721143,0.50824992,78.429,78.4,12.75497933]
[1771875721436,0.50824992,78.429,78.401,1.99281367]
[1771875721837,44.6212295,78.438,78.377,1.99281367]
[1771875721838,12.28462236,78.41,78.377,1.99281367]
[1771875722045,0.50697211,78.389,78.352,1.99281367]
[1771875722237,12.28462236,78.38,78.352,1.99281367]
[1771875722852,14.44465887,78.43,78.37,12.28462236]
[1771875723058,0.50567779,78.419,78.39,12.28462236]
[1771875723222,0.50441682,78.428,78.391,1.99281367]
[1771875723542,0.50441682,78.419,78.391,1.99281367]
[1771875724328,12.28462236,78.42,78.391,1.99281367]
[1771875724839,0.5031959,78.426,78.393,1.99281367]
[1771875725326,12.75038569,78.429,78.393,1.99281367]
[1771875725836,0.50195992,78.428,78.393,1.99281367]
[1771875726645,12.28462236,78.42,78.393,1.99281367]
[1771875726846,0.50195992,78.428,78.393,1.99281367]
[1771875727046,3.49,79.597,78.368,51.04076521]
[1771875727047,0.50072415,78.439,78.405,1.99281367]
[1771875727361,0.50072415,78.439,78.394,44.64627394]
[1771875727362,0.49951656,78.454,78.411,1.99281367]
[1771875727646,12.78413892,78.45,78.411,1.99281367]
[1771875727847,12.78413892,78.45,78.378,5.36086188]
[1771875727848,0.49951656,78.419,78.373,1.99281367]
[1771875728037,12.28462236,78.41,78.373,1.99281367]
[1771875728242,0.49951656,78.419,78.381,1.99281367]
[1771875728551,12.28462236,78.41,78.381,1.99281367]
[1771875728849,12.28462236,78.42,78.381,1.99281367]
[1771875729034,12.75201162,78.419,78.383,1.99281367]
[1771875729231,0.49714846,78.418,78.383,1.99281367]
[1771875729544,12.75201162,78.419,78.382,44.65310913]
[1771875729545,0.2,78.5,78.384,0.28432314]
[1771875729852,6.66644774,78.462,78.431,1.99281367]
[1771875730146,0.49714846,78.489,78.451,1.99281367]
[1771875730324,0.49714846,78.489,78.461,1.99281367]
[1771875730520,0.4959783,78.498,78.47,12.28462236]
[1771875730725,0.28432314,78.497,78.47,12.28462236]
[1771875730943,0.4959783,78.498,78.47,14.27743603]
[1771875731144,13.23416236,78.497,78.47,1.99281367]
[1771875731330,12.28462236,78.49,78.462,1.99281367]
[1771875731531,0.49482201,78.496,78.462,1.99281367]
[1771875732151,12.28462236,78.48,78.45,1.99281367]
[1771875732450,12.77830003,78.48,78.45,1.99281367]
[1771875733154,12.74242462,78.478,78.451,12.74681011]
[1771875733339,0.49254132,78.477,78.438,1.99281367]
[1771875733647,5.49780135,78.46,78.431,1.99281367]
[1771875733831,0.49254132,78.449,78.412,1.99281367]
[1771875735253,12.77466315,78.44,78.404,1.99281367]
[1771875735749,0.28432314,78.447,78.411,1.99281367]
[1771875735953,12.74729757,78.448,78.411,1.99281367]
[1771875736339,13.23653359,78.448,78.411,1.99281367]
[1771875736540,0.48923602,78.447,78.411,1.99281367]
[1771875736929,12.7466952,78.452,78.411,1.99281367]
[1771875737132,12.7466952,78.452,78.422,12.7515238]
[1771875737457,12.7466952,78.452,78.423,1.99281367]
[1771875737663,0.48816516,78.429,78.381,12.75815273]
[1771875737854,12.28434308,78.45,78.38,1.99281367]
[1771875737855,12.28434308,78.4,78.38,1.99281367]
[1771875738154,12.28434308,78.41,78.381,12.75819395]
[1771875738357,12.28434308,78.41,78.38,1.99281367]
[1771875738534,0.48604976,78.399,78.362,1.97196443]
[1771875739455,13.24042021,78.398,78.363,12.76112451]
[1771875739963,31.88168559,78.415,78.364,1.97196443]
[1771875740136,0.48499278,78.401,78.37,12.28434308]
[1771875740336,0.48499278,78.401,78.364,2.00364907]
[1771875741949,12.75510204,78.4,78.365,12.76079882]
[1771875742155,25.03944512,78.4,78.366,2.00364907]
[1771875742670,25.5204091,78.4,78.366,2.00364907]
[1771875742973,12.28434308,78.39,78.353,31.90652425]
[1771875743136,12.28434308,78.39,78.355,2.00364907]
[1771875743137,0.48096398,78.389,78.355,2.00364907]
[1771875744156,0.48096398,78.389,78.356,44.66792587]
[1771875744362,12.28434308,78.39,78.357,2.00364907]
[1771875747158,12.28434308,78.39,78.358,12.76193879]
[1771875747360,12.28434308,78.39,78.359,2.00364907]
[1771875749067,12.28434308,78.39,78.361,2.00364907]
[1771875749846,0.47425841,78.389,78.356,12.76220373]
[1771875750048,0.47425841,78.388,78.357,2.00364907]
[1771875752262,12.28434308,78.39,78.324,54.76317069]
[1771875752263,13.22786857,78.393,78.361,2.00364907]
[1771875752871,12.28434308,78.39,78.361,2.00364907]
[1771875753067,13.22786857,78.393,78.361,2.00364907]
[1771875753068,12.75689191,78.389,78.362,12.76128735]
[1771875753247,12.75689191,78.389,78.363,2.00364907]
[1771875753762,0.47067267,78.388,78.363,2.00364907]
[1771875754669,12.75689191,78.389,78.363,2.00364907]
[1771875755568,13.22502925,78.394,78.365,2.00364907]
[1771875755953,12.28434308,78.39,78.365,2.00364907]
[1771875757574,12.75689191,78.389,78.365,2.00364907]
[1771875760271,0.46479087,78.369,78.331,2.00364907]
[1771875760951,12.28434308,78.38,78.341,2.00364907]
[1771875762178,12.7585195,78.379,78.343,2.00364907]
[1771875765569,12.7585195,78.379,78.345,2.00364907]
[1771875766285,12.757344,78.387,78.351,2.00364907]
[1771875766665,12.75659667,78.391,78.351,2.00364907]
[1771875767381,12.75659667,78.391,78.361,2.00364907]
[1771875769463,13.49742194,78.395,78.363,1.97243699]
[1771875769680,0.28432314,78.393,78.363,1.97243699]
[1771875772078,12.75640371,78.392,78.365,1.97243699]
[1771875772461,13.21151404,78.392,78.365,1.97243699]
[1771875777295,0.45174977,78.379,78.356,1.97243699]
[1771875779188,104.0,78.396,78.326,63.83547023]
[1771875779189,0.45110764,78.385,78.358,1.97243699]
[1771875779376,5.51169313,78.38,78.358,1.97243699]
[1771875780575,12.7585195,78.379,78.358,1.97243699]
[1771875782796,0.44863592,78.378,78.342,1.97243699]
[1771875783298,5.51143724,78.36,78.342,1.97243699]
[1771875784690,5.51143724,78.36,78.343,12.76438226]
[1771875784892,0.44863592,78.366,78.344,1.97243699]
[1771875785095,18.71896798,78.37,78.344,1.97243699]
[1771875785298,0.44681346,78.369,78.344,1.97243699]
[1771875786101,0.44681346,78.367,78.344,1.97243699]
[1771875786604,0.44621528,78.349,78.312,1.97243699]
[1771875786784,5.51143724,78.34,78.312,1.97243699]
[1771875787295,0.44561397,78.339,78.312,1.97243699]
[1771875787497,5.51143724,78.33,78.312,1.97243699]
[1771875787696,0.44561397,78.339,78.312,1.97243699]
[1771875788598,18.2764693,78.34,78.314,1.97243699]
[1771875789481,0.44370112,78.339,78.307,1.97243699]
[1771875789686,18.2764693,78.34,78.307,1.97243699]
[1771875789884,0.28432314,78.343,78.311,1.97243699]
[1771875790193,5.51143724,78.34,78.311,1.97243699]
[1771875790592,5.51143724,78.33,78.311,1.97243699]
[1771875790793,0.44237729,78.339,78.311,1.97243699]
[1771875791003,5.51143724,78.34,78.311,1.97243699]
[1771875791703,12.76503401,78.339,78.313,1.97243699]
[1771875794911,0.43723133,78.365,78.331,1.97243699]
[1771875795204,12.76113775,78.363,78.331,1.97243699]
[1771875795585,0.43597741,78.359,78.331,1.97243699]
[1771875800107,13.19782661,78.359,78.333,1.94200392]
[1771875800997,12.7618492,78.359,78.333,1.94200392]
[1771875801594,12.76117459,78.363,78.333,1.94200392]
[1771875801798,12.76036207,78.368,78.333,1.94200392]
[1771875802214,12.76036207,78.368,78.335,1.88901838]
[1771875802592,5.51143724,78.37,78.335,1.88901838]
[1771875802816,13.18413604,78.378,78.341,1.88901838]
[1771875803017,12.75870218,78.378,78.341,1.88901838]
[1771875803913,12.75870218,78.378,78.326,63.83545835]
[1771875803914,12.75870218,78.378,78.351,1.88901838]
[1771875804116,0.42434035,78.377,78.351,1.88901838]
[1771875807122,0.42434035,78.377,78.289,51.09216853]
[1771875807123,0.42109427,78.351,78.321,1.88901838]
[1771875807422,0.42002751,78.349,78.321,1.88901838]
[1771875808320,5.51143724,78.34,78.321,1.88901838]
[1771875808616,0.41895732,78.344,78.321,1.88901838]
[1771875808837,0.41895732,78.356,78.321,1.88901838]
[1771875809008,0.41895732,78.356,78.31,5.51143724]
[1771875809009,0.41895732,78.361,78.331,1.88901838]
[1771875809197,0.70222877,78.366,78.331,1.88901838]
[1771875809402,0.41790563,78.364,78.331,1.88901838]